[Event "1.FrauenBL 2016-17"]
[Site "Berlin"]
[Date "2017.04.29"]
[Round "9.8"]
[White "Scheynin, Julia"]
[Black "Heinemann, Josefine"]
[Result "0-1"]
[ECO "B25"]
[WhiteElo "2028"]
[BlackElo "2237"]
[Annotator "NA"]
[PlyCount "88"]
[EventDate "2017.??.??"]
[EventType "team-tourn"]
[EventCountry "GER"]
[SourceTitle "playchess.com"]
[Source "ChessBase"]
[SourceQuality "1"]
[WhiteTeam "Karlsruher SF"]
[BlackTeam "OSG Baden-Baden"]
[TimeControl "40/6000+30:3000+30"]

1. e4 {[%emt 1:30:26]} c5 {[%emt 1:30:23]} 2. Nc3 {[%emt 1:30:51]} Nc6 {[%emt 1:30:41]} 3. g3 {[%emt 1:31:11]} g6 {[%emt 1:30:51]} 4. Bg2 {[%emt 1:31:36]} Bg7 {[%emt 1:31:36]} 5. f4 {[%emt 1:30:35]} d6 {[%emt 1:30:35]} 6. d3 {[%emt 1:28:34]} e6 {[%emt 1:30:55]} 7. Nf3 {[%emt 1:28:24]} Nge7 {[%emt 1:28:24]} 8. O-O {[%emt 1:28:48]} O-O {[%emt 1:31:45]} 9. Bd2 {[%emt 1:25:46]} Rb8 {[%emt 1:27:59]} 10. Rb1 {[%emt 1:27:59]} b5 {[%emt 1:27:16]} 11. a3 {[%emt 1:18:46]} b4 {[%emt 1:26:22] B25: Closed Sicilian: 3 g3, lines without early Be3} 12. axb4 {[%emt 1:13:57]} cxb4 {[%emt 1:26:46]} 13. Ne2 {[%emt 1:13:47]} Qb6+ {[%emt 1:26:39]} (13... a5 14. b3 Ba6 15. Be3 Qc7 16. Rf2 d5 17. e5 Nf5 18. Qd2 Rfd8 19. g4 {0-1 (37) Vokac,M (2430)-Navara,D (2734) Czech Republic 2015}) 14. Kh1 {[%emt 1:13:34]} a5 {[%emt 1:26:40]} 15. b3 {[%emt 1:10:52]} Na7 {[%emt 1:10:52]} 16. Bc1 $146 {[%emt 1:23:06]} (16. g4 Nb5 17. Qe1 Nc6 18. Qh4 Qd8 19. Qf2 {½-½ (61) Casper,T (2300)-Ftacnik,L Zinnowitz 1976}) 16... Nb5 {[%emt 1:15:27]} 17. Bb2 {[%emt 1:05:46]} Bxb2 {[%emt 1:15:11]} 18. Rxb2 {[%emt 1:06:12]} Bd7 {[%emt 1:14:01]} 19. Qd2 {[%emt 1:00:56]} Rbc8 {[%emt 1:11:06]} 20. g4 {[%emt 0:57:05]} f5 {[%emt 0:57:05]} 21. gxf5 {[%emt 0:53:55]} exf5 $15 {[%emt 0:53:55]} 22. Ng3 {[%emt 0:51:19]} Nc3 {[%emt 1:03:40]} 23. e5 {[%emt 1:03:40]} Ned5 {[%emt 0:58:46]} 24. d4 {[%emt 0:58:46]} Rce8 {[%emt 0:52:09]} 25. Ng5 {[%emt 0:32:27]} Bc6 {[%emt 0:32:27]} 26. Re1 {[%emt 0:49:50]} Qb7 {[%emt 0:19:47]} 27. Rg1 {[%emt 0:12:20]} Nb6 {[%emt 0:41:20]} 28. h4 {[%emt 0:10:31]} Bxg2+ {[%emt 0:40:06]} 29. Rxg2 {[%emt 0:40:06]} a4 {[%emt 0:36:47]} 30. bxa4 {[%emt 0:09:51]} Nbxa4 {[%emt 0:36:45]} 31. Rb3 {[%emt 0:10:15]} dxe5 {[%emt 0:36:18]} 32. dxe5 {[%emt 0:10:00]} Rd8 {[%emt 0:10:00]} 33. Qf2 {[%emt 0:09:25]} Rd5 {[%emt 0:32:48]} 34. Kh2 {[%emt 0:09:15]} Nc5 {[%emt 0:32:51]} 35. h5 {[%emt 0:07:33]} Nxb3 {[%emt 0:32:49]} 36. cxb3 {[%emt 0:08:01]} Rd3 {[%emt 0:27:45]} 37. Nh3 {[%emt 0:04:13]} Nd1 {[%emt 0:27:35]} 38. Qe2 {[%emt 0:01:00]} Ne3 {[%emt 0:27:52]} 39. hxg6 {[%emt 0:27:52]} Qxg2+ {[%emt 0:27:25]} 40. Qxg2 {[%emt 0:00:35]} Nxg2 {[%emt 0:27:51]} 41. gxh7+ {[%emt 0:00:52]} Kxh7 {[%emt 0:28:05]} 42. Ng5+ {[%emt 0:00:52]} Kg6 {[%emt 0:00:52]} 43. Kxg2 {[%emt 0:01:18]} Rxb3 {[%emt 0:01:18]} 44. Nf3 {[%emt 0:27:36]} Rxf3 {[%emt 0:58:49] Ne5+ 0:58:49 Rf2 0:58:49 Qh7 0:58:49 Rh8 0:58:49 Rd7 0:58:49} 0-1

[Event "1.FrauenBL 2016-17"]
[Site "Berlin"]
[Date "2017.04.29"]
[Round "9.8"]
[White "Dirmeier, Carolin"]
[Black "Birkholz, Olga"]
[Result "1-0"]
[ECO "B06"]
[WhiteElo "1950"]
[BlackElo "2082"]
[Annotator "NA"]
[PlyCount "41"]
[EventDate "2017.??.??"]
[EventType "team-tourn"]
[EventCountry "GER"]
[SourceTitle "playchess.com"]
[Source "ChessBase"]
[SourceQuality "1"]
[WhiteTeam "FC Bayern München"]
[BlackTeam "SG Augsburg"]
[TimeControl "40/6000+30:3000+30"]

1. e4 {[%emt 1:30:24]} d6 {[%emt 1:29:31]} 2. d4 {[%emt 1:30:43]} g6 {[%emt 1:29:42]} 3. Nf3 {[%emt 1:30:34]} Bg7 {[%emt 1:30:09]} 4. Nc3 {[%emt 1:30:56]} Bg4 {[%emt 1:30:02]} 5. Be3 {[%emt 1:25:27]} Nc6 {[%emt 1:21:06]} 6. Be2 {[%emt 1:24:46]} h5 {[%emt 1:16:11]} 7. Qd2 {[%emt 1:19:23]} Bxf3 {[%emt 1:10:33]} 8. gxf3 {[%emt 1:11:43]} e6 {[%emt 1:03:03]} 9. d5 {[%emt 1:03:16]} exd5 {[%emt 1:00:14]} 10. Nxd5 {[%emt 1:01:45]} Qd7 {[%emt 1:00:15]} 11. O-O-O {[%emt 1:00:01]} a6 {[%emt 0:56:25]} 12. Bg5 {[%emt 0:53:00]} Nd8 {[%emt 0:44:45]} 13. f4 {[%emt 0:43:27]} Ne6 {[%emt 0:43:27]} 14. Bh4 {[%emt 0:40:32]} Qa4 {[%emt 0:34:54]} 15. Kb1 {[%emt 0:34:50]} Rc8 {[%emt 0:22:38]} 16. e5 {[%emt 0:22:38]} g5 {[%emt 0:20:02]} 17. Bxg5 {[%emt 0:23:21]} Nxg5 {[%emt 0:20:02]} 18. fxg5 {[%emt 0:23:33]} Bxe5 {[%emt 0:17:31]} 19. f4 {[%emt 0:21:00]} Bg7 {[%emt 0:15:57]} 20. Rhe1 {[%emt 0:21:20]} Kd7 {[%emt 0:15:08]} 21. Nb6+ {[%emt 0:20:53]} 1-0

[Event "1.FrauenBL 2016-17"]
[Site "Berlin"]
[Date "2017.04.29"]
[Round "9.9"]
[White "Brandt, Carina"]
[Black "Fuchs, Judith"]
[Result "0-1"]
[ECO "B15"]
[WhiteElo "2045"]
[BlackElo "2274"]
[Annotator "NA"]
[PlyCount "160"]
[EventDate "2017.??.??"]
[EventType "team-tourn"]
[EventCountry "GER"]
[SourceTitle "playchess.com"]
[Source "ChessBase"]
[SourceQuality "1"]
[WhiteTeam "TuRa Harksheide"]
[BlackTeam "Hamburger SK"]
[TimeControl "40/6000+30:3000+30"]

1. e4 {[%emt 1:30:25]} c6 {[%emt 1:30:24]} 2. d4 {[%emt 1:30:24]} d5 {[%emt 1:30:50]} 3. Nd2 {[%emt 1:31:13]} dxe4 {[%emt 1:28:25]} 4. Nxe4 {[%emt 1:31:35]} Nf6 {[%emt 1:28:45]} 5. Nxf6+ {[%emt 1:30:22]} exf6 {[%emt 1:30:22]} 6. Nf3 {[%emt 1:27:40]} Bd6 {[%emt 1:29:29]} 7. Bd3 {[%emt 1:27:25]} O-O {[%emt 1:29:31]} 8. O-O {[%emt 1:27:07]} Qc7 {[%emt 1:27:07]} 9. c3 {[%emt 1:24:46]} Bg4 {[%emt 1:26:23]} 10. h3 {[%emt 1:24:18]} Bh5 {[%emt 1:24:18]} 11. Bf5 {[%emt 1:19:25]} Re8 {[%emt 1:21:04]} 12. Qd3 {[%emt 1:21:04]} Bg6 {[%emt 1:20:27]} 13. Nh4 {[%emt 1:14:49]} Nd7 {[%emt 1:17:47]} 14. Bd2 {[%emt 1:07:26]} Nf8 {[%emt 1:09:31]} 15. Nxg6 {[%emt 1:09:31]} hxg6 {[%emt 1:09:23]} 16. Bg4 {[%emt 1:03:04]} f5 {[%emt 1:05:47]} 17. Bf3 {[%emt 1:05:47]} Ne6 {[%emt 1:05:34]} 18. b4 {[%emt 0:46:16]} Rad8 {[%emt 0:58:49]} 19. Qc4 {[%emt 0:42:52]} Qe7 {[%emt 0:54:28]} 20. Rfe1 {[%emt 0:38:09]} Qh4 {[%emt 0:50:03]} 21. Qf1 {[%emt 0:33:35]} Bb8 {[%emt 0:38:35]} 22. Rad1 {[%emt 0:38:35]} Qe7 {[%emt 0:35:43]} 23. b5 {[%emt 0:35:43]} Qd6 {[%emt 0:25:03]} 24. g3 {[%emt 0:24:57]} f4 {[%emt 0:31:11]} 25. bxc6 {[%emt 0:22:55]} bxc6 {[%emt 0:29:13]} 26. Qg2 {[%emt 0:19:51]} Rc8 {[%emt 0:20:40]} 27. gxf4 {[%emt 0:20:40]} c5 {[%emt 0:20:25]} 28. d5 {[%emt 0:13:24]} Nxf4 {[%emt 0:19:59]} 29. Rxe8+ {[%emt 0:13:33]} Rxe8 {[%emt 0:20:27]} 30. Bxf4 {[%emt 0:13:51]} Qxf4 {[%emt 0:20:50]} 31. Qg4 {[%emt 0:13:17]} Qf6 {[%emt 0:13:17]} 32. c4 {[%emt 0:10:47]} Kh7 {[%emt 0:15:00]} 33. Kg2 {[%emt 0:09:13]} Re5 {[%emt 0:14:38]} 34. h4 {[%emt 0:14:38]} Rf5 {[%emt 0:13:50]} 35. Qh3 {[%emt 0:08:17]} Rf4 {[%emt 0:12:56]} 36. h5 {[%emt 0:05:33]} g5 {[%emt 0:12:16]} 37. Qg3 {[%emt 0:04:25]} Bd6 {[%emt 0:04:25]} 38. Be2 {[%emt 0:03:52]} Rh4 {[%emt 0:06:53]} 39. Qf3 {[%emt 0:06:53]} Qe5 {[%emt 0:05:33]} 40. Bd3+ {[%emt 0:01:35]} Kg8 {[%emt 0:01:35]} 41. Kf1 {[%emt 0:23:15]} g4 {[%emt 0:28:43]} 42. Qe4 {[%emt 0:19:39]} Qxe4 {[%emt 0:19:39]} 43. Bxe4 {[%emt 0:20:07]} g3 {[%emt 0:28:37]} 44. Re1 {[%emt 0:18:17]} gxf2 {[%emt 0:18:17]} 45. Kxf2 {[%emt 0:18:08]} Rxh5 {[%emt 0:18:29]} 46. Bf3 {[%emt 0:17:32]} Rh2+ {[%emt 0:17:32]} 47. Bg2 {[%emt 0:17:44]} Rh6 {[%emt 0:17:55]} 48. Re8+ {[%emt 0:17:38]} Bf8 {[%emt 0:16:16]} 49. Bf3 {[%emt 0:15:43]} Ra6 {[%emt 0:16:01]} 50. Kg3 {[%emt 0:14:26]} g6 {[%emt 0:16:03]} 51. Re2 {[%emt 0:16:03]} Ra4 {[%emt 0:15:18]} 52. Rc2 {[%emt 0:12:19]} Bd6+ {[%emt 0:15:23]} 53. Kg2 {[%emt 0:11:28]} Kg7 {[%emt 0:15:28]} 54. Be2 {[%emt 0:11:07]} Ra3 {[%emt 0:14:26]} 55. Bf3 {[%emt 0:10:41]} Kf6 {[%emt 0:13:52]} 56. Rf2 {[%emt 0:10:12]} Rc3 {[%emt 0:12:20]} 57. Be2+ {[%emt 0:09:35]} Ke7 {[%emt 0:09:35]} 58. Bf1 {[%emt 0:08:45]} Rg3+ {[%emt 0:11:36]} 59. Kh1 {[%emt 0:09:14]} Be5 {[%emt 0:11:42]} 60. Re2 {[%emt 0:08:15]} Kd6 {[%emt 0:11:28]} 61. Re1 {[%emt 0:11:28]} Ra3 {[%emt 0:07:05]} 62. Re2 {[%emt 0:06:51]} g5 {[%emt 0:10:36]} 63. Rf2 {[%emt 0:06:13]} f6 {[%emt 0:10:06]} 64. Re2 {[%emt 0:05:50]} g4 {[%emt 0:10:08]} 65. Kg2 {[%emt 0:05:14]} Rg3+ {[%emt 0:05:14]} 66. Kf2 {[%emt 0:05:27]} Rf3+ {[%emt 0:05:27]} 67. Kg2 {[%emt 0:10:37]} Rc3 {[%emt 0:10:04]} 68. Re1 {[%emt 0:04:14]} f5 {[%emt 0:09:31]} 69. Rb1 {[%emt 0:02:40]} Rc2+ {[%emt 0:09:19]} 70. Kh1 {[%emt 0:02:56]} g3 {[%emt 0:08:52]} 71. Bg2 {[%emt 0:03:23]} Rxa2 {[%emt 0:07:46]} 72. Rc1 {[%emt 0:07:46]} Bd4 {[%emt 0:07:51]} 73. Re1 {[%emt 0:03:18]} a5 {[%emt 0:05:25]} 74. Rf1 {[%emt 0:03:11]} Ra1 {[%emt 0:04:39]} 75. Rxa1 {[%emt 0:02:30]} Bxa1 {[%emt 0:05:07]} 76. Bf3 {[%emt 0:05:07]} a4 {[%emt 0:05:16]} 77. Bd1 {[%emt 0:03:14]} a3 {[%emt 0:05:43]} 78. Bb3 {[%emt 0:03:40]} Bf6 {[%emt 0:05:35]} 79. Kg2 {[%emt 0:04:04]} f4 {[%emt 0:04:04]} 80. Kf3 {[%emt 0:04:24]} Ke5 {[%emt 0:06:23]} 0-1

[Event "1.FrauenBL 2016-17"]
[Site "Berlin"]
[Date "2017.04.29"]
[Round "9.9"]
[White "Horvath, Maria"]
[Black "Vidonyak, Nellya"]
[Result "0-1"]
[ECO "A44"]
[WhiteElo "1983"]
[BlackElo "2120"]
[Annotator "NA"]
[PlyCount "81"]
[EventDate "2017.??.??"]
[EventType "team-tourn"]
[EventCountry "GER"]
[SourceTitle "playchess.com"]
[Source "ChessBase"]
[SourceQuality "1"]
[WhiteTeam "SG Augsburg"]
[BlackTeam "FC Bayern München"]
[TimeControl "40/6000+30:3000+30"]

1. d4 {[%emt 0:00:00]} c5 {[%emt 1:30:02]} 2. d5 {[%emt 1:30:43]} e5 {[%emt 1:30:19]} 3. e4 {[%emt 1:30:19]} d6 {[%emt 1:30:39]} 4. Nc3 {[%emt 1:28:45]} a6 {[%emt 1:29:23]} 5. a4 {[%emt 1:28:56]} Be7 {[%emt 1:29:27]} 6. Nf3 {[%emt 1:28:23]} Nf6 {[%emt 1:28:29]} 7. Be2 {[%emt 1:25:29]} Nbd7 {[%emt 1:25:29]} 8. Nd2 {[%emt 1:26:50]} b6 {[%emt 1:24:50]} 9. O-O {[%emt 1:11:45]} Rb8 {[%emt 1:23:51]} 10. Bc4 {[%emt 1:05:21]} Nf8 {[%emt 1:05:21]} 11. Qe2 {[%emt 1:15:57]} Ra8 {[%emt 1:16:00]} 12. Nd1 {[%emt 0:59:39]} Ng6 {[%emt 0:59:39]} 13. c3 {[%emt 0:56:01]} Nf4 {[%emt 1:13:01]} 14. Qe1 {[%emt 0:55:17]} Rb8 {[%emt 0:55:17]} 15. b4 {[%emt 0:51:40]} b5 {[%emt 1:06:44]} 16. axb5 {[%emt 0:52:04]} axb5 {[%emt 1:07:07]} 17. Be2 {[%emt 0:52:11]} c4 {[%emt 1:05:59]} 18. f3 {[%emt 1:05:59]} Qb6+ {[%emt 1:05:20]} 19. Kh1 {[%emt 0:46:49]} N6h5 {[%emt 1:00:55]} 20. g3 {[%emt 1:00:55]} Nxe2 {[%emt 0:41:12]} 21. Qxe2 {[%emt 0:41:12]} Bh3 {[%emt 0:50:45]} 22. Rf2 {[%emt 0:38:27]} g6 {[%emt 0:38:27]} 23. Nb1 {[%emt 0:35:44]} O-O {[%emt 0:35:44]} 24. Be3 {[%emt 0:36:08]} Qd8 {[%emt 0:37:35]} 25. Ra5 {[%emt 0:21:31]} f5 {[%emt 0:21:31]} 26. exf5 {[%emt 0:17:53]} gxf5 {[%emt 0:28:00]} 27. Ba7 {[%emt 0:12:19]} Rb7 {[%emt 0:25:40]} 28. Qa2 {[%emt 0:25:40]} Bg5 {[%emt 0:21:50]} 29. Qa1 {[%emt 0:10:36]} f4 {[%emt 0:17:20]} 30. g4 {[%emt 0:17:20]} Nf6 {[%emt 0:16:25]} 31. Nd2 {[%emt 0:07:54]} Qd7 {[%emt 0:14:15]} 32. Re2 {[%emt 0:07:35]} Nxg4 {[%emt 0:07:35]} 33. fxg4 {[%emt 0:07:35]} Qxg4 {[%emt 0:06:42]} 34. Rf2 {[%emt 0:06:42]} Bh4 {[%emt 0:06:38]} 35. Ne3 {[%emt 0:02:24]} fxe3 {[%emt 0:06:17]} 36. Rxf8+ {[%emt 0:02:35]} Kxf8 {[%emt 0:06:27]} 37. Qg1 {[%emt 0:02:14]} exd2 {[%emt 0:02:14]} 38. Ra1 {[%emt 0:06:25]} Qf5 {[%emt 0:06:25]} 39. Z0 {[%emt 0:06:25]} Bg5 {[%emt 0:06:25]} 40. Z0 {[%emt 0:06:25]} Qf2 {[%emt 0:06:25]} 41. Z0 {[%emt 0:06:25] Bc1 0:06:25} 0-1

[Event "1.FrauenBL 2016-17"]
[Site "Berlin"]
[Date "2017.04.29"]
[Round "9.10"]
[White "Klek, Hanna Marie"]
[Black "Videnova, Iva"]
[Result "1-0"]
[ECO "B52"]
[WhiteElo "2376"]
[BlackElo "2370"]
[Annotator "NA"]
[PlyCount "75"]
[EventDate "2017.??.??"]
[EventType "team-tourn"]
[EventCountry "GER"]
[SourceTitle "playchess.com"]
[Source "ChessBase"]
[SourceQuality "1"]
[WhiteTeam "SF Deizisau"]
[BlackTeam "SK Schwäbisch Hall"]
[TimeControl "40/6000+30:3000+30"]

1. e4 {[%emt 1:30:30]} c5 {[%emt 1:30:22]} 2. Nf3 {[%emt 1:30:51]} d6 {[%emt 1:30:36]} 3. Bb5+ {[%emt 1:30:36]} Bd7 {[%emt 1:30:43]} 4. Bxd7+ {[%emt 1:31:39]} Qxd7 {[%emt 1:30:53]} 5. c4 {[%emt 1:32:04]} Nf6 {[%emt 1:30:55]} 6. Nc3 {[%emt 1:32:28]} g6 {[%emt 1:31:14]} 7. d4 {[%emt 1:32:52]} cxd4 {[%emt 1:32:52]} 8. Nxd4 {[%emt 1:33:19]} Bg7 {[%emt 1:33:19]} 9. f3 {[%emt 1:33:41]} O-O {[%emt 1:33:41]} 10. Be3 {[%emt 1:33:39]} Nc6 {[%emt 1:32:12]} 11. O-O {[%emt 1:31:40]} e6 {[%emt 1:31:40]} 12. Rc1 {[%emt 1:22:09]} Rfd8 {[%emt 1:22:09]} 13. b3 {[%emt 1:31:38]} d5 {[%emt 1:13:35]} 14. cxd5 {[%emt 0:54:54]} exd5 {[%emt 1:13:37]} 15. Nxc6 {[%emt 1:13:37]} bxc6 {[%emt 1:13:54]} 16. exd5 {[%emt 1:13:54]} cxd5 {[%emt 1:12:22]} 17. Bd4 {[%emt 1:12:22]} Ne8 {[%emt 0:55:34]} 18. Re1 {[%emt 0:29:45]} Bh6 {[%emt 0:47:05]} 19. Rc2 {[%emt 0:28:07]} Nc7 {[%emt 0:46:51]} 20. Bf6 {[%emt 0:46:51]} Re8 {[%emt 0:46:57]} 21. Be5 {[%emt 0:18:31]} Rad8 {[%emt 0:32:27]} 22. Rce2 {[%emt 0:13:15]} Ne6 {[%emt 0:25:20]} 23. Kh1 {[%emt 0:09:17]} Bg5 {[%emt 0:19:27]} 24. Qd3 {[%emt 0:07:23]} Qb7 {[%emt 0:16:31]} 25. f4 {[%emt 0:03:03]} Bh4 {[%emt 0:14:13]} 26. Rd1 {[%emt 0:02:57]} f6 {[%emt 0:13:51]} 27. f5 {[%emt 0:01:06]} fxe5 {[%emt 0:01:32]} 28. fxe6 {[%emt 0:01:32]} e4 {[%emt 0:07:03]} 29. Qd4 {[%emt 0:01:00]} Rxe6 {[%emt 0:05:49]} 30. Nxd5 {[%emt 0:01:19]} Qf7 {[%emt 0:01:42]} 31. Qc4 {[%emt 0:01:42]} Red6 {[%emt 0:00:49]} 32. Red2 {[%emt 0:00:49]} e3 {[%emt 0:00:23]} 33. Nf6+ {[%emt 0:00:37]} Bxf6 {[%emt 0:00:46]} 34. Rxd6 {[%emt 0:00:56]} Qxc4 {[%emt 0:00:08]} 35. bxc4 {[%emt 0:01:03]} Kf7 {[%emt 0:00:06]} 36. Rxf6+ {[%emt 0:00:45]} Ke7 {[%emt 0:00:45]} 37. Rxd8 {[%emt 0:01:04]} e2 {[%emt 0:00:40]} 38. Re8+ {[%emt 0:01:29]} 1-0

[Event "1.FrauenBL 2016-17"]
[Site "Berlin"]
[Date "2017.04.29"]
[Round "10"]
[White "Schulze, Lara"]
[Black "Baciu, Diana"]
[Result "0-1"]
[ECO "C03"]
[WhiteElo "2157"]
[BlackElo "2298"]
[Annotator "NA"]
[PlyCount "94"]
[EventDate "2017.??.??"]
[EventType "team-tourn"]
[EventCountry "GER"]
[SourceTitle "playchess.com"]
[Source "ChessBase"]
[SourceQuality "1"]
[WhiteTeam "SK Lehrte"]
[BlackTeam "Hamburger SK"]
[TimeControl "40/6000+30:3000+30"]

1. e4 {[%emt 1:30:24]} e6 {[%emt 1:30:26]} 2. d4 {[%emt 1:30:49]} d5 {[%emt 1:30:49]} 3. Nd2 {[%emt 1:31:12]} h6 {[%emt 1:31:16] C03: French Tarrasch: Unusual Black 3rd moves} (3... c5 4. exd5 Qxd5 5. dxc5 Bxc5 6. Ngf3 Nf6 7. Bc4 Qc6 8. O-O Nbd7 9. Qe2 a6 10. a4 b6 11. Nb3 Bb7 12. Nxc5 Nxc5 13. b4 Ncd7 14. Rd1 O-O 15. b5 {½-½ (31) Zherebukh,Y (2605)-So,W (2822) Saint Louis 2017}) 4. Ngf3 {[%emt 1:28:59]} Nf6 {[%emt 1:31:39]} 5. e5 {[%emt 1:26:15]} Nfd7 {[%emt 1:26:15]} 6. c4 {[%emt 1:22:18] LiveBook: 24 Partien} c5 {[%emt 1:15:47]} 7. cxd5 {[%emt 1:21:23]} exd5 {[%emt 1:16:15]} 8. Bd3 {[%emt 1:16:15]} c4 $146 {[%emt 1:15:29]} (8... Be7 9. O-O Nc6 10. Re1 Nf8 11. dxc5 {1-0 (29) Anton Guijarro,D (2635)-Suarez Gomez,J (2417) Linares 2015}) 9. Bc2 {[%emt 1:15:51]} Nb6 {[%emt 1:15:23]} 10. O-O {[%emt 1:14:58]} Nc6 {[%emt 1:14:56]} 11. Re1 {[%emt 1:10:34]} Bg4 {[%emt 1:10:28]} 12. h3 {[%emt 1:07:32]} Be6 {[%emt 1:07:32]} 13. Nf1 {[%emt 1:05:40]} Qd7 {[%emt 1:05:40]} 14. N3h2 {[%emt 1:02:53]} Be7 {[%emt 0:58:29]} 15. g4 {[%emt 0:52:23] [#]} h5 $1 {[%emt 0:53:04]} 16. Ng3 {[%emt 0:43:45]} hxg4 {[%emt 0:53:05]} 17. hxg4 {[%emt 0:44:07]} g6 {[%emt 0:51:22]} 18. Be3 {[%emt 0:38:37]} O-O-O {[%emt 0:47:26]} 19. g5 $19 {[%emt 0:28:54]} Rh4 {[%emt 0:43:54]} 20. f3 {[%emt 0:43:54]} Rdh8 {[%emt 0:34:31]} 21. Re2 {[%emt 0:27:21]} Qd8 {[%emt 0:34:24]} 22. f4 {[%emt 0:24:51]} Rh3 {[%emt 0:24:51]} 23. Rg2 {[%emt 0:24:01]} Kb8 {[%emt 0:24:01]} 24. Ng4 {[%emt 0:19:39]} Nb4 {[%emt 0:21:18]} 25. Nf2 {[%emt 0:21:18]} R3h4 {[%emt 0:20:02]} 26. Bb1 {[%emt 0:11:03]} Qg8 {[%emt 0:17:08]} 27. f5 {[%emt 0:09:06]} Bd7 {[%emt 0:16:53]} 28. a3 {[%emt 0:07:58]} Nd3 {[%emt 0:16:21]} 29. Nxd3 {[%emt 0:06:43]} cxd3 {[%emt 0:16:49]} 30. Bxd3 {[%emt 0:05:25]} Bxf5 {[%emt 0:16:40]} 31. Bxf5 {[%emt 0:03:52]} gxf5 {[%emt 0:16:57]} 32. Qf3 {[%emt 0:02:20]} Qh7 {[%emt 0:13:26]} 33. Qxf5 {[%emt 0:13:26]} Rh1+ {[%emt 0:13:27]} 34. Kf2 {[%emt 0:00:30]} Rxa1 {[%emt 0:00:30]} 35. e6 {[%emt 0:00:12]} fxe6 {[%emt 0:06:27]} 36. Qxh7 {[%emt 0:06:27]} Rxh7 {[%emt 0:06:55]} 37. g6 {[%emt 0:00:49]} Rg7 {[%emt 0:07:08]} 38. Nh5 {[%emt 0:07:08]} Rg8 {[%emt 0:06:35]} 39. Bf4+ {[%emt 0:01:18]} Kc8 {[%emt 0:06:49]} 40. g7 {[%emt 0:00:43]} Rh1 {[%emt 0:05:11]} 41. Bh2 {[%emt 0:26:42]} Nd7 {[%emt 0:35:01]} 42. Kf3 {[%emt 0:26:21]} Nf6 {[%emt 0:30:23]} 43. Rc2+ {[%emt 0:25:11]} Kd7 {[%emt 0:25:11]} 44. Rc7+ {[%emt 0:23:31]} Ke8 {[%emt 0:23:31]} 45. Bd6 {[%emt 0:23:05]} Nxh5 {[%emt 0:28:49]} 46. Rxe7+ {[%emt 0:22:28]} Kd8 {[%emt 0:22:28]} 47. Rxb7 {[%emt 0:29:18]} Rxg7 {[%emt 0:29:08]} 0-1

[Event "1.FrauenBL 2016-17"]
[Site "Berlin"]
[Date "2017.04.29"]
[Round "10"]
[White "Spiel, Marianne"]
[Black "Noppes, Marina"]
[Result "1-0"]
[ECO "B28"]
[WhiteElo "1921"]
[BlackElo "1992"]
[Annotator "NA RC"]
[PlyCount "63"]
[EventDate "2017.??.??"]
[EventType "team-tourn"]
[EventCountry "GER"]
[SourceTitle "playchess.com"]
[Source "ChessBase"]
[SourceQuality "1"]
[WhiteTeam "FC Bayern München"]
[BlackTeam "SF Deizisau"]
[TimeControl "40/6000+30:3000+30"]

1. e4 {[%emt 1:30:27]} c5 {[%emt 1:29:02]} 2. Nf3 {[%emt 1:29:02]} a6 {[%emt 1:28:03]} 3. d4 {[%emt 1:30:55]} cxd4 {[%emt 1:28:02]} 4. Nxd4 {[%emt 1:31:12]} e5 {[%emt 1:27:55]} 5. Nf3 {[%emt 1:18:53]} Nc6 {[%emt 1:26:47]} 6. Bc4 {[%emt 1:10:03]} h6 {[%emt 1:26:42]} 7. O-O {[%emt 1:26:42]} Nf6 {[%emt 1:25:48]} 8. Re1 {[%emt 1:25:48]} Bb4 {[%emt 1:06:29]} 9. c3 {[%emt 1:04:32]} Bc5 {[%emt 1:04:32]} 10. h3 {[%emt 1:02:15]} O-O {[%emt 1:11:16]} 11. a4 {[%emt 0:51:53]} d6 {[%emt 0:51:53]} 12. Nbd2 {[%emt 0:47:11]} Qe7 {[%emt 0:47:11]} 13. Nf1 {[%emt 0:44:03]} Be6 $11 {[%emt 0:42:47]} 14. Qd3 {[%emt 0:34:28]} Bxc4 {[%emt 0:28:50]} 15. Qxc4 {[%emt 0:33:42]} Qe6 {[%emt 0:26:37]} 16. Qxe6 {[%emt 0:30:54]} fxe6 {[%emt 0:27:03]} 17. Ng3 {[%emt 0:30:57]} d5 {[%emt 0:22:24]} 18. Be3 {[%emt 0:22:05]} d4 {[%emt 0:18:17]} 19. Bd2 {[%emt 0:20:46]} Nd7 {[%emt 0:20:46]} 20. Rad1 {[%emt 0:16:25]} Rad8 {[%emt 0:15:12]} 21. cxd4 {[%emt 0:09:55]} exd4 {[%emt 0:13:08]} 22. e5 {[%emt 0:10:17]} Ba7 {[%emt 0:09:38]} 23. b4 {[%emt 0:07:31]} d3 {[%emt 0:07:21]} 24. Bc3 {[%emt 0:07:21]} Nb6 {[%emt 0:00:57]} 25. Ra1 {[%emt 0:00:57]} Nd5 {[%emt 0:00:54]} 26. Bd2 {[%emt 0:07:11]} Ndxb4 {[%emt 0:00:53]} 27. Rab1 {[%emt 0:00:53]} a5 {[%emt 0:01:00]} 28. Ne4 {[%emt 0:07:06]} Nd4 {[%emt 0:00:08]} 29. Nxd4 {[%emt 0:00:08]} Rxd4 {[%emt 0:00:09]} 30. Bc3 {[%emt 0:04:33]} Rc4 {[%emt 0:00:07]} 31. Bd2 {[%emt 0:04:09]} Nc2 {[%emt 0:04:09]} 32. Rbc1 {[%emt 0:02:53]} 1-0